Cogmind - Beta 15 @@@ ROGUE MODE // 2025.05.12 @ 23:36:20 Player: DuckBoy Result: Destroyed by F3-DQA(j) with Overtuned Pulse Rifle Performance ------------- Evolutions (0) 0 Regions Visited (3) 600 Robots Destroyed (31) 155 Value Destroyed (932) 932 Prototype IDs (7) 140 Alien Tech Used (0) 0 Bonus (800) 800 TOTAL SCORE: 2627 Bonus ------- Registered with UFD 300 Met Optimus in HQ 500 Cogmind --------- Core Integrity 0/250 Matter 300/300 Energy 78/100 System Corruption 1% Temperature Cool (25) Movement Rolling (45) Location -8/Scraptown Parts ------- > --- POWER (1) -------- (None) > --- PROPULSION (2) --- Wheel > --- UTILITY (2) ------ Rocket Booster Makeshift Light Armor Plating > --- WEAPON (2) ------- (None) > --- INVENTORY (5) ---- Spiked Treads Scrap Suit Makeshift Hacking Suite Subdweller Laser Peak State ------------ > --- POWER ------------ Ion Engine > --- PROPULSION ------- Wheel Subdweller Monowheel > --- UTILITY ---------- Rocket Booster Makeshift Light Armor Plating > --- WEAPON ----------- Subdweller Beam Cannon Subdweller Machine Gun > --- INVENTORY -------- Spiked Treads Scrap Suit Subdweller Laser Overtuned Barrage Gun [Rating: 17] Favorites ----------- Power Ion Engine Engine Ion Engine Power Core Light Nuclear Core Propulsion Spiked Treads Treads Spiked Treads Leg Aluminum Leg Wheel Wheel Utility Cobbler Unit Device Cobbler Unit Storage Huge Storage Unit Protection Makeshift Light Armor Plating Weapon Subdweller Beam Cannon Energy Gun EM Pulse Gun Energy Cannon Subdweller Beam Cannon Ballistic Gun Subdweller Machine Gun Launcher Grenade Launcher Build | -11 -10 -10 -8 ------- Run | Yrd Mat Sub Scr Slots Evolved . | . . . . Power . | . . . . Propulsion . | . . . . Utility . | . . . . Weapon . | . . . . Parts Attached 28 | 5 8 6 9 Power 3 | 1 1 1 . Engine 2 | 1 . 1 . Core 1 | . 1 . . Reactor . | . . . . Propulsion 10 | 2 2 2 4 Treads 4 | 2 . 1 1 Leg 1 | . . 1 . Wheel 5 | . 2 . 3 Hover . | . . . . Flight . | . . . . Utility 9 | 1 3 1 4 Device 4 | . 1 . 3 Storage 3 | 1 2 . . Processor . | . . . . Hackware . | . . . . Protection 2 | . . 1 1 Artifact . | . . . . Weapon 6 | 1 2 2 1 Energy Gun 1 | 1 . . . Energy Cannon 1 | . . 1 . Ballistic Gun 3 | . 1 1 1 Ballistic Cannon . | . . . . Launcher 1 | . 1 . . Special Weapon . | . . . . Impact Weapon . | . . . . Slashing Weapon . | . . . . Piercing Weapon . | . . . . Special Melee Weapon . | . . . . Unidentified Prototypes . | . . . . Corrupted Parts 1 | . . . 1 System Corruption 8 | . . . 8 Parts Lost 8 | . . 3 5 Power 2 | . . 1 1 Propulsion 2 | . . 1 1 Utility 2 | . . . 2 Weapon 2 | . . 1 1 Highest Loss Streak 5 | . . 2 5 To Critical Strikes . | . . . . Average Backups 7 | 3 7 13 4 Power . | . 1 1 . Propulsion 3 | 1 4 6 2 Utility . | . . 2 . Weapon 2 | 1 2 3 1 Tool/Special . | . . . . Unused Backups 17 | . 1 1 15 Power 1 | . . . 1 Propulsion 5 | . . . 5 Utility 5 | . 1 . 4 Weapon 6 | . . 1 5 Tool/Special . | . . . . Average Slot Usage (%) 84 | . 93 99 76 Engine 11 | . 1 10 13 Core 2 | . 12 3 . Treads 19 | . 17 25 17 Wheel 2 | . 10 1 1 Device 10 | . 8 3 13 Storage 5 | . 13 14 . Protection 2 | . . 10 . Energy Gun 6 | . 6 10 4 Energy Cannon 9 | . . 6 13 Ballistic Gun 8 | . 9 6 9 Launcher 3 | . 11 4 . Peak Build Rating 17 | 5 12 16 17 Average Rating 12 | 3 9 12 13 On Entrance 8 | . 5 12 16 Naked Turns . | . . . . Heaviest Build 101 | 10 91 101 99 Greatest Support 50 | 40 40 40 50 Greatest Overweight (x) 4 | . 3 4 3 Average Overweight (x) . | . 1 2 . Largest Inventory Capacity 25 | 8 25 25 25 Average Capacity 11 | 7 16 25 5 Most Carried 21 | 7 11 21 21 Average Carried 7 | 3 8 14 4 Final Capacity 25 | 8 25 25 5 Final Carried 21 | 7 11 21 5 Class Distribution -------------------- 98% | Mutant Dominant Class ---------------- Mutant | -10/Materials Mutant | -10/Subcaves Mutant | -8/Scraptown Resources | -11 -10 -10 -8 ----------- Run | Yrd Mat Sub Scr Matter Collected 1468 | 216 373 232 647 Remotely . | . . . . Salvage Created 1184 | . 458 264 462 Parts 56 | . 29 11 16 Haulers Intercepted . | . . . . Recyclers Shooed . | . . . . Parts Field Recycled . | . . . . Retrieved Matter . | . . . . Parts Self-Destructed 8 | . . 8 . Prevented . | . . . . Kills | -11 -10 -10 -8 ------- Run | Yrd Mat Sub Scr Combat Hostiles Destroyed 25 | . 11 7 7 Guns 8 | . 3 2 3 Cannons 5 | . . 1 4 AOE 11 | . 8 3 . Classes Destroyed 14 | . 6 4 4 Worker 1 | . 1 . . Builder 1 | . 1 . . Tunneler 1 | . 1 . . Recycler 1 | . 1 . . Watcher 2 | . 2 . . Swarmer 3 | . . 3 . Grunt 11 | . 11 . . Sentry 1 | . . 1 . Cobbler 1 | . . 1 . Subdweller 3 | . . 3 . Bolteater 3 | . . . 3 Federalist 1 | . . . 1 Explorer 1 | . . . 1 Scrapper 2 | . . . 2 Best Kill Streak 4 | . 3 3 4 Combat Bots Only 4 | . 2 3 4 Max Kills in Single Turn 3 | . 3 3 1 Gunslinging . | . . . . Exploded 3 | . 2 3 . Melee . | . . . . Uniques/NPCs Destroyed . | . . . . Combat | -11 -10 -10 -8 -------- Run | Yrd Mat Sub Scr Hostile Shots Fired 96 | . 17 40 39 Missed 29 | . 6 14 9 Hits 67 | . 11 26 30 Melee 7 | . . . 7 Projectile 60 | . 11 26 23 Critical Strikes 4 | . 1 1 2 Damage Taken 1209 | . 234 459 516 Core 269 | . 40 26 203 Absorbed by Shields . | . . . . Regen/Repaired (Parts) 197 | . 197 . . Core Remaining (%) 100 | 100 . . . Volleys Fired 86 | . 33 36 17 Largest 2 | . 2 2 2 Hottest 120 | . 60 120 110 Shots Fired 136 | . 46 60 30 Gun 89 | . 26 43 20 Cannon 24 | . . 14 10 Launcher 23 | . 20 3 . Special . | . . . . Kinetic 52 | . 13 19 20 Thermal 24 | . . 14 10 Explosive 23 | . 20 3 . Electromagnetic 37 | . 13 24 . Robot Hit Streak 21 | . 8 21 10 Robot Miss Streak 4 | . 3 4 2 Penetration Max . | . . . . Secondary Targets . | . . . . Shots Hit Robots 86 | . 21 47 18 Core Hits 49 | . 27 12 10 Critical Kills 1 | . . 1 . Critical Parts Destroyed 2 | . . . 2 Critical Strikes 5 | . 1 2 2 Meltdown 1 | . . 1 . Destroy 2 | . . . 2 Corrupt 2 | . 1 1 . Melee Attacks . | . . . . Impact . | . . . . Slashing . | . . . . Piercing . | . . . . Sneak Attacks . | . . . . Combat Hostiles . | . . . . Follow-up Attacks . | . . . . Damage Inflicted 2234 | . 1013 808 413 Guns 797 | . 182 392 223 Cannons 387 | . . 197 190 Explosions 1050 | . 831 219 . Melee . | . . . . Ramming . | . . . . Kinetic 430 | . 54 153 223 Thermal 411 | . 24 197 190 Explosive 1026 | . 807 219 . Electromagnetic 367 | . 128 239 . Impact . | . . . . Slashing . | . . . . Piercing . | . . . . Highest Corruption 8 | . . . 8 Average Corruption 1 | . . . 1 Corruption Purged . | . . . . Corruption Blocked . | . . . . Effects 1 | . . . 1 Matter Fused 1 | . . . 1 Overload Shots . | . . . . Overflow Damage 17 | . 9 7 1 Projectiles 1 | . . . 1 Explosions 16 | . 9 7 . Melee . | . . . . Knockbacks . | . . . . Impact . | . . . . Kinetic . | . . . . Secondary . | . . . . Self-Inflicted Damage 144 | . 100 44 . Shots 7 | . 5 2 . Rammed . | . . . . Targets Rammed . | . . . . Kicked . | . . . . Crushed . | . . . . Highest Temperature 546 | . 63 36 546 Average Temperature 102 | . 20 12 159 Received Heat Transfer 467 | . 96 105 266 Effects 6 | . . . 6 Shutdowns 2 | . . . 2 Energy Bleed 1 | . . . 1 Short Circuit 1 | . . . 1 Damage (minor) 1 | . . . 1 Damage (core) 1 | . . . 1 Siege Activations . | . . . . Martial Activations . | . . . . Shielding Activations . | . . . . Robots Disrupted . | . . . . Combat Hostiles . | . . . . Robots Corrupted 1 | . . 1 . Combat Hostiles . | . . . . Parts Fried . | . . . . Impact Corruptions . | . . . . Robots Melted 1 | . . 1 . Combat Hostiles 1 | . . 1 . Parts Melted 5 | . . 3 2 Heat Transferred 605 | . 50 259 296 Parts Sabotaged . | . . . . Parts Stolen . | . . . . Parts Stripped . | . . . . Power Chain Reactions 1 | . 1 . . Alert | -11 -10 -10 -8 ------- Run | Yrd Mat Sub Scr Maximum Alert Level . | . . . . Low Security (%) 100 | 100 100 . . Level 1 . | . . . . Level 2 . | . . . . Level 3 . | . . . . Level 4 . | . . . . Level 5 . | . . . . High Security . | . . . . Max Security . | . . . . Peak Influence 199 | . 199 . . Initial . | . . . . Average 85 | . 90 . . Influence Increases 642 | . 552 90 . Destroy 0b10 Robot/C 300 | . 220 80 . Destroy 0b10 Robot/NC 30 | . 30 . . Destroy Leader 74 | . 64 10 . Successful Hack 14 | . 14 . . Disable Machine 90 | . 90 . . Destroy Structure 134 | . 134 . . Influence Decreases 642 | . 408 234 . Entered New Map 70 | . . 70 . Time Decay 572 | . 408 164 . Squads Dispatched 2 | . 2 . . Investigation 2 | . 2 . . Extermination . | . . . . Reinforcement . | . . . . Assault . | . . . . Garrison . | . . . . Intercept . | . . . . Searches Triggered . | . . . . Construction Impeded . | . . . . Haulers Reinforced . | . . . . Active Scanning Responses . | . . . . Cargo Convoy Interrupts . | . . . . Stealth | -11 -10 -10 -8 --------- Run | Yrd Mat Sub Scr Distress Signals 2 | . 2 . . Communications Jammed . | . . . . Distress Signals . | . . . . Times Spotted 61 | . 14 8 39 Peak Tracking Total 5 | . 3 3 5 Tactical Retreats . | . . . . Traps | -11 -10 -10 -8 ------- Run | Yrd Mat Sub Scr Traps Triggered 1 | . 1 . . Indirectly . | . . . . Trap Hack Attempts . | . . . . Triggered . | . . . . Disarmed 5 | . 5 . . Reprogrammed . | . . . . Reused . | . . . . Traps Extracted . | . . . . Installed . | . . . . Triggered . | . . . . Most Traps Carried 1 | . . 1 1 Machines | -11 -10 -10 -8 ---------- Run | Yrd Mat Sub Scr Machines Disabled 6 | . 6 . . Max in Single Turn 2 | . 2 . . Machines Repaired . | . . . . Machines Dismantled . | . . . . Machines Sabotaged . | . . . . Overloaded Fab Kills . | . . . . Hacking | -11 -10 -10 -8 --------- Run | Yrd Mat Sub Scr Machines Accessed 18 | . 10 . 8 Terminals 8 | . 8 . . Fabricators . | . . . . Repair Stations 1 | . 1 . . Recycling Units 1 | . 1 . . Scanalyzers . | . . . . Garrison Access . | . . . . Total Hacks 72 | . 23 . 49 Successful 58 | . 9 . 49 Failed 14 | . 14 . . Catastrophic 2 | . 2 . . Database Lockouts . | . . . . Manual 5 | . 5 . . Terminals 17 | . 17 . . Fabricators . | . . . . Repair Stations 5 | . 5 . . Recycling Units 1 | . 1 . . Scanalyzers . | . . . . Garrison Access . | . . . . Terminal Hacks 54 | . 5 . 49 Record 49 | . . . 49 Emergency Access Points 1 | . 1 . . Locate Traps 1 | . 1 . . Disarm Traps 1 | . 1 . . Dispatch Records 1 | . 1 . . Hauler Manifests 1 | . 1 . . Fabricator Hacks . | . . . . Repair Station Hacks 2 | . 2 . . Scan Component 1 | . 1 . . Repair 1 | . 1 . . Recycling Unit Hacks 1 | . 1 . . Retrieve Components 1 | . 1 . . Scanalyzer . | . . . . Garrison Access Hacks . | . . . . Unauthorized Hacks 1 | . 1 . . Terminals . | . . . . Fabricators . | . . . . Repair Stations 1 | . 1 . . Patch 1 | . 1 . . Recycling Units . | . . . . Scanalyzers . | . . . . Garrison Access . | . . . . Data Cores Recovered . | . . . . Used . | . . . . Hacking Detections 8 | . 8 . . Full Trace Events . | . . . . Feedback Events . | . . . . Feedback Blocked . | . . . . Robot Schematics Acquired . | . . . . Robots Built . | . . . . Authchips . | . . . . Time . | . . . . Total Robot Build Rating . | . . . . Part Schematics Acquired . | . . . . Parts Built . | . . . . Authchips . | . . . . Time . | . . . . Total Part Build Rating . | . . . . Parts Repaired 1 | . 1 . . Time 26 | . 26 . . Parts Recycled . | . . . . Recycled Matter . | . . . . Retrieved Matter . | . . . . Retrieved Components 4 | . 4 . . Parts Scanalyzed . | . . . . Part Schematics Acquired . | . . . . Parts Damaged . | . . . . Bothacking | -11 -10 -10 -8 ------------ Run | Yrd Mat Sub Scr Used RIF Installer . | . . . . Robots Hacked . | . . . . Non-combat . | . . . . Combat . | . . . . Robot Hacks Applied . | . . . . Relay Couplers Released . | . . . . Fabnet Peak Effective % . | . . . . Robots Rewired . | . . . . Allies Hacked . | . . . . Hacks Repelled . | . . . . Allies | -11 -10 -10 -8 -------- Run | Yrd Mat Sub Scr Total Allies . | . . . . Largest Group . | . . . . Highest-Rated Group . | . . . . Highest-Rated Ally . | . . . . Total Orders . | . . . . Ally Attacks . | . . . . Total Damage . | . . . . Kills . | . . . . Allies Corrupted . | . . . . Allies Melted 7 | . . . 7 Intel | -11 -10 -10 -8 ------- Run | Yrd Mat Sub Scr Active Infowar (turns) . | . . . . Robot Analysis Total . | . . . . Derelict Logs Recovered 2 | . . 2 . Drone Launches . | . . . . Drone Recoveries . | . . . . Exploration | -11 -10 -10 -8 ------------- Run | Yrd Mat Sub Scr Turns Passed 7681 | 84 1241 1853 4503 Spaces Moved 3337 | 49 725 500 2063 Core 7 | 7 . . . Treads 2736 | 42 407 454 1833 Legs . | . . . . Wheels 594 | . 318 46 230 Hover . | . . . . Flight . | . . . . Fastest Speed 45 | 50 135 135 45 Average Speed 204 | 144 149 318 198 Slowest Speed 480 | 160 160 480 340 Overloaded Moves . | . . . . Propulsion Burnouts . | . . . . Robots Hopped . | . . . . Potential Cave-ins . | . . . . Cave-ins Triggered . | . . . . Exploration Rate (%) 57 | 5 97 39 90 Regions Visited 3 Branch Regions 2 Pre-discovered Areas 1 | . . 1 . Known Exits Taken . | . . . . Unknown Exits Taken 3 | 1 1 1 . Scrap Searched 14 | . . 9 5 Spaces Dug 16 | . 16 . . Terrain Destroyed 170 | . 151 16 3 Melee . | . . . . Projectile 6 | . . 3 3 AOE 164 | . 151 13 . Terrain Rammed . | . . . . Walls Destroyed . | . . . . Machines Disabled . | . . . . Actions | -11 -10 -10 -8 --------- Run | Yrd Mat Sub Scr Total 4037 | 60 837 697 2443 Wait 516 | . 57 131 328 Move 3334 | 48 724 499 2063 Hop . | . . . . Pick Up 39 | 7 9 13 10 Fast Attach 15 | 5 4 1 5 Attach 7 | . 1 3 3 Detach . | . . . . Swap 20 | . 5 12 3 Drop 20 | . 4 2 14 Fire 86 | . 33 36 17 Melee . | . . . . Ram . | . . . . Kick . | . . . . Crush . | . . . . Escape Stasis . | . . . . Rewire . | . . . . Trap . | . . . . Miscellaneous . | . . . . Route ------- -11/Scrapyard -10/Materials (discovered 5 exits: [*Mat x3] / [*Min] / [*Sub]) -10/Subcaves -8/Scraptown (discovered 2 exits: *Fac x2) History --------- Turn | Location | Event 3 | -11/Scrapyard | Discovered new exit (range 14) 85 | -11/Scrapyard | Entered Materials 301 | -10/Materials | Discovered new exit (range 9) 318 | -10/Materials | Build established: Mutant 574 | -10/Materials | Discovered new exit (range 7) 685 | -10/Materials | Derelicts attacked the area 688 | -10/Materials | Discovered new exit (range 15) 784 | -10/Materials | Repaired Lrg. Storage Unit 1005 | -10/Materials | Discovered new exit (range 8) 1231 | -10/Materials | Discovered new exit (range 7) 1326 | -10/Materials | Entered Subcaves 1327 | -10/Subcaves | Approached by a straggling Scientist 1681 | -10/Subcaves | Shifting Twisted Machinery released Mak. Light Armor Plating 1749 | -10/Subcaves | Learned location of Storage (-8) 1775 | -10/Subcaves | Shifting Twisted Machinery released Sub. Beam Cannon 1958 | -10/Subcaves | Scientist uncovered a shortcut to Scraptown 2233 | -10/Subcaves | Learned Materials stockpile data 2528 | -10/Subcaves | Disturbed a concealed Subdweller 3179 | -10/Subcaves | Entered Scraptown 3191 | -8/Scraptown | System corruption cleaned by C-Scrubber 3469 | -8/Scraptown | Heard Great Nut preacher, LISTEN AND RECITE! 3611 | -8/Scraptown | Visited TADAMA 3681 | -8/Scraptown | Visited SPCMW 3760 | -8/Scraptown | Visited Spacefarers 3830 | -8/Scraptown | Visited Symbiants 4310 | -8/Scraptown | Visited Awakened 4429 | -8/Scraptown | Visited Cyclists 4483 | -8/Scraptown | Visited Shadow of the Wyrm 4885 | -8/Scraptown | Discovered new exit (range 3) 5551 | -8/Scraptown | Visited UFD Registry 5551 | -8/Scraptown | Registered with UFD as "Protondisc" 5697 | -8/Scraptown | Visited Research Penetration Think Tank 5760 | -8/Scraptown | Visited Scrap Suit Storage 5859 | -8/Scraptown | Visited LU-1G1's Boring Crew 6308 | -8/Scraptown | Visited Science Testing Area 6347 | -8/Scraptown | Visited Infowarlord's Domain 6394 | -8/Scraptown | Visited Abandonware Association 6459 | -8/Scraptown | Learned abandonware demo "MELTYB.EXE" 6519 | -8/Scraptown | Visited Modified Component R&D 6672 | -8/Scraptown | Visited Curators Association 6776 | -8/Scraptown | Visited Cartography Club 7138 | -8/Scraptown | Met Optimus 7138 | -8/Scraptown | Accepted into 0bPrime 7412 | -8/Scraptown | Civil war broke out across Scraptown 7487 | -8/Scraptown | Identified exit to Factory 7518 | -8/Scraptown | Found Scrap Suit 7522 | -8/Scraptown | Core integrity fell below 50% 7655 | -8/Scraptown | Optimus destroyed in the chaos of civil war 7663 | -8/Scraptown | Core integrity fell below 20% 7682 | -8/Scraptown | Destroyed by F3-DQA(j) with Overtuned Pulse Rifle Last Messages --------------- remaining collaborators. 07655_ Optimus destroyed. 07656_ Dropped Huge Storage Unit. 07656_ Mak. Hacking Suite crushed and broken. 07656_ Mak. Light Armor Plating crushed and broken. 07661_ Sub. Machine Gun destroyed. 07665_ FP-LO2(x) destroyed. 07667_ XK-LDJ(x) destroyed. 07668_ 3T-TCR(E) heat spikes uncontrollably. 07668_ Acquired Rocket Booster. 07669_ LU-A7C(j): "I'll admit this is sort of exciting." 07669_ Ion Engine destroyed. 07670_ 1M-TIS(j) cannibalizes Mak. Microdissipator Network to repair Mak. Microdissipator Network. 07670_ Acquired 5 matter. 07672_ 3T-TCR(E) suffers critical hit (Burn). 07674_ Critical hit (Burn: +50). 07676_ Sub. Monowheel destroyed. 07677_ Dropped Sub. Machine Gun. 07679_ Critical hit (Burn: +50). Map ----- +----------------------------------------------------+ | ##?????? ???????????????????#X# ## ##"" ""## | | "#??????#"#???????????????????### ## #" "# | | #???#### #######?????????????# ##"" ""## | | #???#" "#???????####### #######&" "]#? | | #???# X#???????# ##"" ""## | | #???# "#???????# #" "# | | #???# ! #???????####### ########### ###### | | #######=%##"###"###???????##### ########### ###### | | #???????#"""" """"""""""" """""" | | #???????#" | | #???????#" | | #???????#" | | #???????#" | | ######### #???#####" | | ###?????# #???#"""" """"""""""""""""" | | ""#?????# [ / #???#"""" """"""""""""""""" | | "#?????# &% % #???#"""" ""###### ####### | | "#?????# = #???#"""" ""# ## | | "#?????# * #???#"""" ""# X"# | | "#?????# =][ ###?#"""" ""# "" "" ## | | "#????##= !%! ! ""#"#"""" ""# "" "" X"# | | "#????#"% !!!= """"#"""" ""# " " ## | | "#?????# [[ ""#######" "" "" | | ""#????## * ###?????#" ""!!% "" | | ###????#" [% ! j#########" "# " " ## | | ????????# ! *%! =%!@ ""# "" "" ""# | | ????????# !== !%= ""=% "" "" ## | | ????????# !%= ! ""; X"# | | ??????### = =*! *%= !""; ## | | #######"* !%TT![ ! j !=""###### ####### | | !%! =%TT =! [ *!%""""""""""""""""" | | ! ![ ![!*! % =%j !""""""""""""""""" | | =%= =! = = % !%[%! | | %!! !%= =%! !!=! | | = %/ / / != ! !=%!= | | =//% ==% #""""#" !!=! | | === % = #????#" [%! | | %*! * % #????#"" "" [ """""""""" """" | | =""#####""" ### !;###????####### ########### #### | | #### ! #"=&%[#????????# "#????# | | #??# #!%=*##????????#" ""#????## | | ???# =% #"! #?????????# ""#????#"! | | ???# = "# #?????????#" ""#????#"! ! | | ???# " "" #?????????#" ""#????#"! | | ???#*=""""" ##= #?????????#"" """""#????#"! ! | | ???#=%""""" ##*! #?????????#""""""""#????#"! ! | | ???# ##%!=#?????????##########????## X## | | ???# ##[=%#???????????????????????#" "#? | | ???############%[!"???????????????????????#"! "? | | ??????????????#=*!##??????????????????????#######? | +----------------------------------------------------+ Best States ------------- Heat Dissipation 39 Energy Generation 14 Energy Capacity 250 Matter Stores 300 Matter Capacity 300 Sight Range 16 Terrain Scan Density 10 Armor Coverage 100 Evasion (%) 50 Recoil Reduction 2 Item Schematics ----------------- None Robot Schematics ------------------ None Fabricated ------------ Nothing Repaired ---------- Lrg. Storage Unit | 47% | -10/Materials Alien Tech Used ----------------- None Achievements -------------- None Challenges ------------ None Game ------ Seed BlanketUtilityFalx Manual? 0 Play Time 00:50:04 Cumulative 477.1 hours Start 2025.05.12 @ 22:27:07 End 2025.05.12 @ 23:36:20 Sessions 1 Manual Loads 0 Difficulty Rogue Special Mode None Game No. 306 Rogue 303 Adventurer 3 Explorer 0 Win Type - Total 8 Types 7/0/1/0/0/0/0/0/0/0 Lore% 72 Gallery% 70 Achievement% 67 Wizard Run 0 Options --------- Layout 0 ASCII 0 Keyboard 0 Movement Numpad Keybinds 0 Fullscreen 1 Font 18/SmallcapsGlow Map View 76x50 Zoom Use 0% Tactical HUD 1 Map Filters NONE Filters NONE Steam 1 RUN: 61b1ba05-72ff-4ad3-bc0f-063fb485cec7